Workbook

Sheet RLC Circuit
A1: Modeling The RLC Circuit
B3: This DIGMath module lets you investigate
B4: the behavior of an RLC electrical circuit:
B5: how the current I in a circuit depends on
B6: the Resistance R of a resistor,
B7: the Inductance L of an inductor, and
B8: and the Capacitance C of a capacitor.
A10: What is the initial current I0 (0 to 200 milliamps)?
C11: =10*D11 -> 60 | D11: 6
A14: What is the inductance L (100 - 1000 mh)?
C15: =D15*50 -> 400 | D15: 8 | E15: 7
A17: What is the resistance R (0 - 2000 ohms)?
C18: =D18*10 -> 1090 | D18: 109
A20: What is the capacitance C (1 - 20 mF)? | H20: Now trace a point along the curve for the current I.
C21: =D21 -> 4 | D21: 4 | J21: 431
H22: t = | I22: =J21*dtt -> 43.1 | J22: seconds
A23: This combination produces | D23: =IF(case=1,"critical damping",IF(case=2,"over-damping","under-damping")) -> under-damping | H23: I = | I23: =LOOKUP(I$22+0.001,Sheet2!C3:C1003,Sheet2!G3:G1003) -> -21.54 | J23: milliamps above/below the equilibrium level
A24: for the solution of the D.E. | D24: =TEXT(a00,"0")&" I'' + "&TEXT(kk,"0")&" I' + "&TEXT(1/cc,"0.00") &" I = 0" -> 400 I'' + 1090 I' + 0.25 I = 0
A27: Click each item below for suggestions and investigations
B28: Item 1
B29: Item 2
B30: Item 3
B31: Item 4
B32: Item 5
B33: Item 6
B34: Item 7
A37: To access/download all the DIGMath Apps for Differential Equations
A38: Click this link: | C38: https://we-dig-math.org/dynamic-differential-equations.html
A40: Created by: Sheldon P. Gordon
A41: Farmingdale State College
A42: Development of this module was supported by the
A43: NSF's Division of Undergraduate Education
A44: under grants DUE-0310123 and DUE-0442160.

Sheet Sheet2
C1: t | D1: y1 | E1: y2 | F1: y3 | G1: y | H1: v
C3: 0 | D3: =(B$20+B$21*tt)*EXP(-omega0*tt) -> 60 | E3: =B$24*EXP(gamma2*tt)+B$25*EXP(gamma2*tt) ->  | F3: =EXP(-cc/2/mm*tt)*(B$29*COS(SQRT(-Disc)/2/mm*tt)+B$30*SIN(SQRT(-Disc)/2/mm*tt)) -> 60 | G3: =IF(case=1,D3,IF(case=2,E3,F3)) -> 60 | I3: 0
A4: sqrt(k/m) = | B4: =SQRT(kk/mm) -> 1.650757402 | C4: =C3+dtt -> 0.1 | D4: 50.87135889 | F4: 59.15663553 | G4: 59.15663553 | I4: 0
C5: 0.2 | D5: 43.13158589 | F5: 56.70654225 | G5: 56.70654225 | I5: 0
C6: 0.3 | D6: 36.56937302 | F6: 52.71790695 | G6: 52.71790695 | I6: 0
A7: gamma = | B7: =1/cc/2/SQRT(mm*kk) -> 0.0001893070415 | C7: 0.4 | D7: 31.00556156 | F7: 47.30065791 | G7: 47.30065791 | I7: 0
A8: disc= | B8: =1/cc^2-4*mm*kk -> -1743999.938 | C8: 0.5 | D8: 26.28825073 | F8: 40.60343587 | G8: 40.60343587 | I8: 0
C9: 0.6 | D9: 22.28865052 | F9: 32.80951608 | G9: 32.80951608 | I9: 0
A10: v0 = | B10: 0 | C10: 0.7 | D10: 18.89756555 | F10: 24.13179315 | G10: 24.13179315 | I10: 0
C11: 0.8 | D11: 16.02241388 | F11: 14.80696613 | G11: 14.80696613 | I11: 0
A12: delta t = | B12: 0.1 | C12: 0.9 | D12: 13.58469934 | F12: 5.089082421 | G12: 5.089082421 | I12: 0
C13: 1 | D13: 11.51786849 | F13: -4.75738323 | G13: -4.75738323 | I13: 0
A14: gamma1 = | B14: =(-kk+SQRT(1/cc^2-4*mm*kk))/2/mm ->  | C14: 1.1 | D14: 9.765493601 | F14: -14.46472624 | G14: -14.46472624 | I14: 0
A15: gamma2 = | B15: =(-kk-SQRT(1/cc^2-4*mm*kk))/2/mm ->  | C15: 1.2 | D15: 8.279732074 | F15: -23.76929021 | G15: -23.76929021 | I15: 0
C16: 1.3 | D16: 7.020020282 | F16: -32.41862776 | G16: -32.41862776 | I16: 0
C17: 1.4 | D17: 5.951966111 | F17: -40.17834945 | G17: -40.17834945 | I17: 0
C18: 1.5 | D18: 5.046410001 | F18: -46.83847532 | G18: -46.83847532 | I18: 0
A19: 1. Critical damping | C19: 1.6 | D19: 4.278628842 | F19: -52.21911659 | G19: -52.21911659 | I19: 0
A20: A = | B20: =yy0 -> 60 | C20: 1.7 | D20: 3.627661 | F20: -56.17533408 | G20: -56.17533408 | I20: 0
A21: B = | B21: =v0+1/cc/2/mm*yy0 -> 0.01875 | C21: 1.8 | D21: 3.075734027 | F21: -58.60104193 | G21: -58.60104193 | I21: 0
C22: 1.9 | D22: 2.607779446 | F22: -59.4318517 | G22: -59.4318517 | I22: 0
A23: 2. Over-damped | C23: 2 | D23: 2.211021361 | F23: -58.64678035 | G23: -58.64678035 | I23: 0
A24: A = | B24: =(v0-gamma2*yy0)/(gamma1-gamma2) ->  | C24: 2.1 | D24: 1.87462765 | F24: -56.26877715 | G24: -56.26877715 | I24: 0
A25: B = | B25: =yy0-B24 ->  | C25: 2.2 | D25: 1.589414234 | F25: -52.36405608 | G25: -52.36405608 | I25: 0
C26: 2.3 | D26: 1.347594336 | F26: -47.04025323 | G26: -47.04025323 | I26: 0
C27: 2.4 | D27: 1.142565893 | F27: -40.44346045 | G27: -40.44346045 | I27: 0
A28: 3. Under-damped | C28: 2.5 | D28: 0.968731304 | F28: -32.75421682 | G28: -32.75421682 | I28: 0
A29: A = | B29: =yy0 -> 60 | C29: 2.6 | D29: 0.8213446106 | F29: -24.18256819 | G29: -24.18256819 | I29: 0
A30: B = | B30: =1/B32*(gamma*omega0*yy0+v0) -> 0.01135842269 | C30: 2.7 | D30: 0.6963819233 | F30: -14.96232964 | G30: -14.96232964 | I30: 0
C31: 2.8 | D31: 0.5904315636 | F31: -5.344707898 | G31: -5.344707898 | I31: 0
A32: omegaD = | B32: =omega0*SQRT(1-gamma^2) -> 1.650757372 | C32: 2.9 | D32: 0.5006009192 | F32: 4.408542584 | G32: 4.408542584 | I32: 0
A33: gamma = | C33: 3 | D33: 0.4244374717 | F33: 14.03224328 | G33: 14.03224328 | I33: 0
C34: 3.1 | D34: 0.3598618387 | F34: 23.2650012 | G34: 23.2650012 | I34: 0
C35: 3.2 | D35: 0.3051110032 | F35: 31.85630842 | G35: 31.85630842 | I35: 0
A36: case = | B36: =IF(Disc<0,3,IF(Disc>0,2,1)) -> 3 | C36: 3.3 | D36: 0.258690181 | F36: 39.57333873 | G36: 39.57333873 | I36: 0
C37: 3.4 | D37: 0.2193320103 | F37: 46.20725696 | G37: 46.20725696 | I37: 0
C38: 3.5 | D38: 0.1859619507 | F38: 51.57887003 | G38: 51.57887003 | I38: 0
C39: 3.6 | D39: 0.1576689469 | F39: 55.54346693 | G39: 55.54346693 | I39: 0
C40: 3.7 | D40: 0.133680555 | F40: 57.99471672 | G40: 57.99471672 | I40: 0
C41: 3.8 | D41: 0.1133418541 | F41: 58.86751967 | G41: 58.86751967 | I41: 0
C42: 3.9 | D42: 0.0960975654 | F42: 58.13973517 | G42: 58.13973517 | I42: 0
C43: 4 | D43: 0.08147689254 | F43: 55.83274042 | G43: 55.83274042 | I43: 0
C44: 4.1 | D44: 0.069080668 | F44: 52.01080606 | G44: 52.01080606 | I44: 0
B45: t3 | C45: 4.2 | D45: 0.05857045523 | F45: 46.77930669 | G45: 46.77930669 | I45: 0
B46: =M3 -> 0 | C46: 4.3 | D46: 0.04965930878 | F46: 40.2818163 | G46: 40.2818163 | I46: 0
C47: 4.4 | D47: 0.04210394022 | F47: 32.69616847 | G47: 32.69616847 | I47: 0
C48: 4.5 | D48: 0.03569807603 | F48: 24.22958954 | G48: 24.22958954 | I48: 0
C49: 4.6 | D49: 0.03026682597 | F49: 15.11303789 | G49: 15.11303789 | I49: 0
C50: 4.7 | D50: 0.02566190829 | F50: 5.594903925 | G50: 5.594903925 | I50: 0
C51: 4.8 | D51: 0.02175760144 | F51: -4.065757247 | G51: -4.065757247 | I51: 0
C52: 4.9 | D52: 0.01844731166 | F52: -13.60627631 | G52: -13.60627631 | I52: 0
C53: 5 | D53: 0.01564066279 | F53: -22.76751131 | G53: -22.76751131 | I53: 0
C54: 5.1 | D54: 0.01326102886 | F54: -31.30088632 | G54: -31.30088632 | I54: 0
C55: 5.2 | D55: 0.01124344208 | F55: -38.97513582 | G55: -38.97513582 | I55: 0
C56: 5.3 | D56: 0.009532819136 | F56: -45.58257205 | G56: -45.58257205 | I56: 0
B57: t4 | C57: 5.4 | D57: 0.008082457308 | F57: -50.94470532 | G57: -50.94470532 | I57: 0
B58: =M4 -> 0 | C58: 5.5 | D58: 0.006852759414 | F58: -54.91706521 | G58: -54.91706521 | I58: 0
C59: 5.6 | D59: 0.005810152748 | F59: -57.39309258 | G59: -57.39309258 | I59: 0
C60: 5.7 | D60: 0.004926172492 | F60: -58.30699739 | G60: -58.30699739 | I60: 0
C61: 5.8 | D61: 0.004176684581 | F61: -57.63550577 | G61: -57.63550577 | I61: 0
C62: 5.9 | D62: 0.003541226805 | F62: -55.39844999 | G62: -55.39844999 | I62: 0
C63: 6 | D63: 0.003002450156 | F63: -51.65818646 | G63: -51.65818646 | I63: 0
C64: 6.1 | D64: 0.002545645175 | F64: -46.51785866 | G64: -46.51785866 | I64: 0
C65: 6.2 | D65: 0.002158340361 | F65: -40.11855353 | G65: -40.11855353 | I65: 0
C66: 6.3 | D66: 0.001829961674 | F66: -32.63542947 | G66: -32.63542947 | I66: 0
C67: 6.4 | D67: =(B$20+B$21*tt)*EXP(-omega0*tt) -> 0.001551543856 | E67: =B$24*EXP(gamma2*tt)+B$25*EXP(gamma2*tt) ->  | F67: =EXP(-cc/2/mm*tt)*(B$29*COS(SQRT(-Disc)/2/mm*tt)+B$30*SIN(SQRT(-Disc)/2/mm*tt)) -> -24.27292241 | G67: =IF(case=1,D67,IF(case=2,E67,F67)) -> -24.27292241 | I67: 0
B68: t5 | C68: =C67+dtt -> 6.5 | D68: 0.001315485657 | F68: -15.25916103 | G68: -15.25916103 | I68: 0
B69: =M5 -> 0 | C69: 6.6 | D69: 0.001115342312 | F69: -5.839743737 | G69: -5.839743737 | I69: 0
C70: 6.7 | D70: 0.0009456495903 | F70: 3.728952914 | G70: 3.728952914 | I70: 0
C71: 6.8 | D71: 0.0008017746092 | F71: 13.18675197 | G71: 13.18675197 | I71: 0
C72: 6.9 | D72: 0.0006797893533 | F72: 22.27675016 | G72: 22.27675016 | I72: 0
C73: 7 | D73: 0.0005763634306 | F73: 30.75229591 | G73: 30.75229591 | I73: 0
C74: 7.1 | D74: 0.0004886731489 | F74: 38.3836818 | G74: 38.3836818 | I74: 0
C75: 7.2 | D75: 0.0004143244236 | F75: 44.96436993 | G75: 44.96436993 | I75: 0
B76: t6 | C76: 7.3 | D76: 0.0003512874162 | F76: 50.31658137 | G76: 50.31658137 | I76: 0
B77: =M6 -> 0 | C77: 7.4 | D77: 0.0002978411159 | F77: 54.29609851 | G77: 54.29609851 | I77: 0
C78: 7.5 | D78: 0.0002525263535 | F78: 56.79615066 | G78: 56.79615066 | I78: 0
C79: 7.6 | D79: 0.0002141059637 | F79: 57.75027802 | G79: 57.75027802 | I79: 0
C80: 7.7 | D80: 0.0001815310085 | F80: 57.1340975 | G80: 57.1340975 | I80: 0
C81: 7.8 | D81: 0.0001539121399 | F81: 54.96592323 | G81: 54.96592323 | I81: 0
B82: t7 | C82: 7.9 | D82: 0.0001304953185 | F82: 51.3062262 | G82: 51.3062262 | I82: 0
B83: =M7 -> 0 | C83: 8 | D83: 0.0001106412279 | F83: 46.25594885 | G83: 46.25594885 | I83: 0
C84: 8.1 | D84: 9.380781953e-05 | F84: 39.95372152 | G84: 39.95372152 | I84: 0
C85: 8.2 | D85: 7.953551463e-05 | F85: 32.5720575 | G85: 32.5720575 | I85: 0
C86: 8.3 | D86: 6.743465644e-05 | F86: 24.31263119 | G86: 24.31263119 | I86: 0
B87: t8 | C87: 8.4 | D87: 5.71748722e-05 | F87: 15.40076846 | G87: 15.40076846 | I87: 0
B88: =M8 -> 0 | C88: 8.5 | D88: 4.847605343e-05 | F88: 6.079299814 | G88: 6.079299814 | I88: 0
C89: 8.6 | D89: 4.110070846e-05 | F89: -3.398055991 | G89: -3.398055991 | I89: 0
C90: 8.7 | D90: 3.484747859e-05 | F90: -12.77359757 | G90: -12.77359757 | I90: 0
C91: 8.8 | D91: 2.954564066e-05 | F91: -21.79264789 | G91: -21.79264789 | I91: 0
C92: 8.9 | D92: 2.505044602e-05 | F92: -30.21047209 | G92: -30.21047209 | I92: 0
C93: 9 | D93: 2.123916866e-05 | F93: -37.79891809 | G93: -37.79891809 | I93: 0
C94: 9.1 | D94: 1.800775461e-05 | F94: -44.35260011 | G94: -44.35260011 | I94: 0
C95: 9.2 | D95: 1.526798111e-05 | F95: -49.69445717 | G95: -49.69445717 | I95: 0
C96: 9.3 | D96: 1.294504795e-05 | F96: -53.68053641 | G96: -53.68053641 | I96: 0
C97: 9.4 | D97: 1.097553534e-05 | F97: -56.20387189 | G97: -56.20387189 | I97: 0
C98: 9.5 | D98: 9.305672439e-06 | F98: -57.19735439 | G98: -57.19735439 | I98: 0
C99: 9.6 | D99: 7.88986931e-06 | F99: -56.63551529 | G99: -56.63551529 | I99: 0
C100: 9.7 | D100: 6.689472263e-06 | F100: -54.53517701 | G100: -54.53517701 | I100: 0
C101: 9.8 | D101: 5.671708536e-06 | F101: -50.95495362 | G101: -50.95495362 | I101: 0
C102: 9.9 | D102: 4.808791549e-06 | F102: -45.99361625 | G102: -45.99361625 | I102: 0
C103: 10 | D103: 4.077162286e-06 | F103: -39.78736884 | G103: -39.78736884 | I103: 0
C104: 10.1 | D104: 3.456846095e-06 | F104: -32.50610943 | G104: -32.50610943 | I104: 0
C105: 10.2 | D105: 2.930907351e-06 | F105: -24.34877951 | G105: -24.34877951 | I105: 0
C106: 10.3 | D106: 2.484987082e-06 | F106: -15.53792879 | G106: -15.53792879 | I106: 0
C107: 10.4 | D107: 2.106910951e-06 | F107: -6.313643879 | G107: -6.313643879 | I107: 0
C108: 10.5 | D108: 1.786356871e-06 | F108: 3.072993582 | G108: 3.072993582 | I108: 0
C109: 10.6 | D109: 1.514573204e-06 | F109: 12.36674101 | G109: 12.36674101 | I109: 0
C110: 10.7 | D110: 1.284139818e-06 | F110: 21.31513519 | G110: 21.31513519 | I110: 0
C111: 10.8 | D111: 1.088765512e-06 | F111: 29.67535019 | G111: 29.67535019 | I111: 0
C112: 10.9 | D112: 9.231162551e-07 | F112: 37.22078644 | G112: 37.22078644 | I112: 0
C113: 11 | D113: 7.826695555e-07 | F113: 43.74721232 | G113: 43.74721232 | I113: 0
C114: 11.1 | D114: 6.635909932e-07 | F114: 49.07829179 | G114: 49.07829179 | I114: 0
C115: 11.2 | D115: 5.626295321e-07 | F115: 53.07034841 | G115: 53.07034841 | I115: 0
C116: 11.3 | D116: 4.770287622e-07 | F116: 55.61623705 | G116: 55.61623705 | I116: 0
C117: 11.4 | D117: 4.04451645e-07 | F117: 56.64821905 | G117: 56.64821905 | I117: 0
C118: 11.5 | D118: 3.429167084e-07 | F118: 56.13976362 | G118: 56.13976362 | I118: 0
C119: 11.6 | D119: 2.907439498e-07 | F119: 54.10622764 | G119: 54.10622764 | I119: 0
C120: 11.7 | D120: 2.465089692e-07 | F120: 50.6043964 | G120: 50.6043964 | I120: 0
C121: 11.8 | D121: 2.090040802e-07 | F121: 45.73089917 | G121: 45.73089917 | I121: 0
C122: 11.9 | D122: 1.772053392e-07 | F122: 39.61954339 | G122: 39.61954339 | I122: 0
C123: 12 | D123: 1.502445894e-07 | F123: 32.43764139 | G123: 32.43764139 | I123: 0
C124: 12.1 | D124: 1.27385759e-07 | F124: 24.38143018 | G124: 24.38143018 | I124: 0
C125: 12.2 | D125: 1.08004765e-07 | F125: 15.67070984 | G125: 15.67070984 | I125: 0
C126: 12.3 | D126: 9.157247518e-08 | F126: 6.542846912 | G126: 6.542846912 | I126: 0
C127: 12.4 | D127: 7.764026154e-08 | F127: -2.753693491 | G127: -2.753693491 | I127: 0
C128: 12.5 | D128: 6.582775221e-08 | F128: -11.96611084 | G128: -11.96611084 | I128: 0
C129: 12.6 | D129: 5.581244668e-08 | F129: -20.84414329 | G129: -20.84414329 | I129: 0
C130: 12.7 | D130: 4.732091096e-08 | F130: -29.14686601 | G130: -29.14686601 | I130: 0
C131: 12.8 | D131: =(B$20+B$21*tt)*EXP(-omega0*tt) -> 4.012131246e-08 | E131: =B$24*EXP(gamma2*tt)+B$25*EXP(gamma2*tt) ->  | F131: =EXP(-cc/2/mm*tt)*(B$29*COS(SQRT(-Disc)/2/mm*tt)+B$30*SIN(SQRT(-Disc)/2/mm*tt)) -> -36.64922891 | G131: =IF(case=1,D131,IF(case=2,E131,F131)) -> -36.64922891 | I131: 0
C132: =C131+dtt -> 12.9 | D132: 3.401709052e-08 | F132: -43.14815648 | G132: -43.14815648 | I132: 0
C133: 13 | D133: 2.884159005e-08 | F133: -48.46804437 | G133: -48.46804437 | I133: 0
C134: 13.1 | D134: 2.445351155e-08 | F134: -52.46550396 | G134: -52.46550396 | I134: 0
C135: 13.2 | D135: 2.07330534e-08 | F135: -55.03322672 | G135: -55.03322672 | I135: 0
C136: 13.3 | D136: 1.757864108e-08 | F136: -56.10286423 | G136: -56.10286423 | I136: 0
C137: 13.4 | D137: 1.490415406e-08 | F137: -55.6468466 | G137: -55.6468466 | I137: 0
C138: 13.5 | D138: 1.263657453e-08 | F138: -53.67909094 | G138: -53.67909094 | I138: 0
C139: 13.6 | D139: 1.071399389e-08 | F139: -50.25458165 | G139: -50.25458165 | I139: 0
C140: 13.7 | D140: 9.083922606e-09 | F140: -45.46783523 | G140: -45.46783523 | I140: 0
C141: 13.8 | D141: 7.701857091e-09 | F141: -39.45029229 | G141: -39.45029229 | I141: 0
C142: 13.9 | D142: 6.530064728e-09 | F142: -32.36670873 | G142: -32.36670873 | I142: 0
C143: 14 | D143: 5.536553691e-09 | F143: -24.41064527 | G143: -24.41064527 | I143: 0
C144: 14.1 | D144: 4.694199525e-09 | F144: -15.79917866 | G144: -15.79917866 | I144: 0
C145: 14.2 | D145: 3.980004601e-09 | F145: -6.766979149 | G145: -6.766979149 | I145: 0
C146: 14.3 | D146: 3.374470241e-09 | F146: 2.440084212 | G146: 2.440084212 | I146: 0
C147: 14.4 | D147: 2.861064381e-09 | F147: 11.57163623 | G147: 11.57163623 | I147: 0
C148: 14.5 | D148: 2.425770209e-09 | F148: 20.37960396 | G148: 20.37960396 | I148: 0
C149: 14.6 | D149: 2.056703492e-09 | F149: 28.62495577 | G149: 28.62495577 | I149: 0
C150: 14.7 | D150: 1.743788111e-09 | F150: 36.08418792 | G150: 36.08418792 | I150: 0
C151: 14.8 | D151: 1.478480969e-09 | F151: 42.55538274 | G151: 42.55538274 | I151: 0
C152: 14.9 | D152: 1.253538753e-09 | F152: 47.86367414 | G152: 47.86367414 | I152: 0
C153: 15 | D153: 1.062820176e-09 | F153: 51.86597248 | G153: 51.86597248 | I153: 0
C154: 15.1 | D154: 9.011183119e-10 | F154: 54.45482133 | G154: 54.45482133 | I154: 0
C155: 15.2 | D155: 7.640184387e-10 | F155: 55.56128188 | G155: 55.56128188 | I155: 0
C156: 15.3 | D156: 6.477775076e-10 | F156: 55.15676791 | G156: 55.15676791 | I156: 0
C157: 15.4 | D157: 5.492219528e-10 | F157: 53.25378222 | G157: 53.25378222 | I157: 0
C158: 15.5 | D158: 4.656610482e-10 | F158: 49.90553587 | G158: 49.90553587 | I158: 0
C159: 15.6 | D159: 3.948134456e-10 | F159: 45.20446142 | G159: 45.20446142 | I159: 0
C160: 15.7 | D160: 3.347448907e-10 | F160: 39.27966196 | G160: 39.27966196 | I160: 0
C161: 15.8 | D161: 2.838154146e-10 | F161: 32.29336603 | G161: 32.29336603 | I161: 0
C162: 15.9 | D162: 2.4063456e-10 | F162: 24.43648604 | G162: 24.43648604 | I162: 0
C163: 16 | D163: 2.040234195e-10 | F163: 15.92340155 | G163: 15.92340155 | I163: 0
C164: 16.1 | D164: 1.729824497e-10 | F164: 6.986110093 | G164: 6.986110093 | I164: 0
C165: 16.2 | D165: 1.466641818e-10 | F165: -2.132094926 | G165: -2.132094926 | I165: 0
C166: 16.3 | D166: 1.243500842e-10 | F166: -11.18324697 | G166: -11.18324697 | I166: 0
C167: 16.4 | D167: 1.05430946e-10 | F167: -19.92144951 | G167: -19.92144951 | I167: 0
C168: 16.5 | D168: 8.939024398e-11 | F168: -28.10955612 | G168: -28.10955612 | I168: 0
C169: 16.6 | D169: 7.57900409e-11 | F169: -35.52560619 | G169: -35.52560619 | I169: 0
C170: 16.7 | D170: 6.425902916e-11 | F170: -41.96884146 | G170: -41.96884146 | I170: 0
C171: 16.8 | D171: 5.44823934e-11 | F171: -47.26514041 | G171: -47.26514041 | I171: 0
C172: 16.9 | D172: 4.61932156e-11 | F172: -51.27172336 | G172: -51.27172336 | I172: 0
C173: 17 | D173: 3.916518772e-11 | F173: -53.88100114 | G173: -53.88100114 | I173: 0
C174: 17.1 | D174: 3.32064332e-11 | F174: -55.02346368 | G174: -55.02346368 | I174: 0
C175: 17.2 | D175: 2.815426834e-11 | F175: -54.66953082 | G175: -54.66953082 | I175: 0
C176: 17.3 | D176: 2.387076083e-11 | F176: -52.83031629 | G176: -52.83031629 | I176: 0
C177: 17.4 | D177: 2.023896395e-11 | F177: -49.55728496 | G177: -49.55728496 | I177: 0
C178: 17.5 | D178: 1.715972375e-11 | F178: -44.94081403 | G178: -44.94081403 | I178: 0
C179: 17.6 | D179: 1.454897195e-11 | F179: -39.1076981 | G179: -39.1076981 | I179: 0
C180: 17.7 | D180: 1.233543078e-11 | F180: -32.21766715 | G180: -32.21766715 | I180: 0
C181: 17.8 | D181: 1.045866698e-11 | F181: -24.45901303 | G181: -24.45901303 | I181: 0
C182: 17.9 | D182: 8.867441822e-12 | F182: -16.04344406 | G182: -16.04344406 | I182: 0
C183: 18 | D183: 7.518312283e-12 | F183: -7.200308516 | G183: -7.200308516 | I183: 0
C184: 18.1 | D184: 6.374444926e-12 | F184: 1.829655498 | G184: 1.829655498 | I184: 0
C185: 18.2 | D185: 5.40461031e-12 | F185: 10.80087348 | G185: 10.80087348 | I185: 0
C186: 18.3 | D186: 4.582330369e-12 | F186: 19.46961278 | G186: 19.46961278 | I186: 0
C187: 18.4 | D187: 3.885155523e-12 | F187: 27.60060417 | G187: 27.60060417 | I187: 0
C188: 18.5 | D188: 3.294051761e-12 | F188: 34.9734268 | G188: 34.9734268 | I188: 0
C189: 18.6 | D189: 2.792880987e-12 | F189: 41.38848321 | G189: 41.38848321 | I189: 0
C190: 18.7 | D190: 2.367960423e-12 | F190: 46.6724026 | G190: 46.6724026 | I190: 0
C191: 18.8 | D191: 2.007689044e-12 | F191: 50.68272592 | G191: 50.68272592 | I191: 0
C192: 18.9 | D192: 1.702230855e-12 | F192: 53.31174624 | G192: 53.31174624 | I192: 0
C193: 19 | D193: 1.443246347e-12 | F193: 54.489401 | G193: 54.489401 | I193: 0
C194: 19.1 | D194: 1.223664823e-12 | F194: 54.18513824 | G194: 54.18513824 | I194: 0
C195: 19.2 | D195: =(B$20+B$21*tt)*EXP(-omega0*tt) -> 1.037491347e-12 | E195: =B$24*EXP(gamma2*tt)+B$25*EXP(gamma2*tt) ->  | F195: =EXP(-cc/2/mm*tt)*(B$29*COS(SQRT(-Disc)/2/mm*tt)+B$30*SIN(SQRT(-Disc)/2/mm*tt)) -> 52.40870746 | G195: =IF(case=1,D195,IF(case=2,E195,F195)) -> 52.40870746 | I195: 0
C196: =C195+dtt -> 19.3 | D196: 8.796430805e-13 | F196: 49.20985428 | G196: 49.20985428 | I196: 0
C197: 19.4 | D197: 7.458105077e-13 | F197: 44.67692872 | G197: 44.67692872 | I197: 0
C198: 19.5 | D198: 6.32339781e-13 | F198: 38.9344457 | G198: 38.9344457 | I198: 0
C199: 19.6 | D199: 5.361329642e-13 | F199: 32.13966518 | G199: 32.13966518 | I199: 0
C200: 19.7 | D200: 4.545634542e-13 | F200: 24.47828597 | G200: 24.47828597 | I200: 0
C201: 19.8 | D201: 3.854042699e-13 | F201: 16.15937096 | G201: 16.15937096 | I201: 0
... 802 more rows
